fUSD/lending_fUSD_20251217
["ID","MTS","AMOUNT","RATE_DAILY","PERIOD"]
[398939790,1766009458483,-567.70683903,0.00012139,2]
[398939791,1766009458497,-22.25316097,0.00012139,2]
[398939792,1766009458506,-2389.12702032,0.00017,2]
[398939793,1766009458517,-711.24252328,0.00017,2]
[398939794,1766009458535,-282.41,0.00017,2]
[398939795,1766009458934,-2775.492,0.00017,2]
[398939796,1766009458945,-1702.87635442,0.00017,2]
[398939798,1766009545057,500.0,0.00018,30]
[398939799,1766009731558,163.37,0.00014966,3]
[398939800,1766009949082,173.37,0.00011257,2]
[398939801,1766010203344,429.95,7.034e-05,2]
[398939802,1766010203556,429.95,7.404e-05,2]
[398939803,1766010203787,429.95,7.775e-05,2]
[398939804,1766010204333,429.95,8.145e-05,2]
[398939805,1766010204389,429.95,8.515e-05,2]
[398939806,1766010204442,429.95,8.885e-05,2]
[398939807,1766010204619,429.95,9.256e-05,2]
[398939808,1766010204821,429.95,9.626e-05,2]
[398939809,1766010205037,429.95,9.996e-05,2]
[398939810,1766010206395,429.95,0.00010366,2]
[398939811,1766010206446,429.95,0.00010736,2]
[398939812,1766010214378,429.95,0.00011107,2]
[398939813,1766010214609,429.95,0.00011477,2]
[398939814,1766010214814,429.95,0.00011847,2]
[398939815,1766010375456,7177.23408089,0.000209,30]
[398939837,1766010632600,-500.0,0.00012076,2]
[398939838,1766010632615,-74.9815518,0.00012217,2]
[398939839,1766010632723,-354.9684482,0.00012217,2]
[398939840,1766010632741,-209.741393,0.00012459,2]
[398939841,1766010632757,-306.31504896,0.000125,2]
[398939842,1766010632771,-429.95,0.00012588,2]
[398939843,1766010632789,-206.37343248,0.00012814,2]
[398939844,1766010632804,-1200.0,0.00012914,2]
[398939845,1766010632820,-300.0,0.00012914,2]
[398939846,1766010632836,-150.0,0.00012914,2]
[398939847,1766010632852,-300.0,0.00012914,2]
[398939848,1766010632869,-7183.72,0.00012915,2]
[398939849,1766010632886,-6919.96,0.00012915,2]
[398939850,1766010632904,-9999.99,0.00012915,2]
[398939851,1766010632920,-3804.02,0.00012915,2]
[398939852,1766010632936,-8654.06,0.00012915,2]
[398939853,1766010632952,-9999.99,0.00012915,2]
[398939854,1766010632968,-150.99,0.00012915,2]
[398939855,1766010632983,-999.99,0.00012915,2]
[398939856,1766010633005,-15121.71,0.00012928,2]
[398939857,1766010633020,-396.13043317,0.00012958,2]
[398939858,1766010633039,-33.81956683,0.00012958,2]
[398939859,1766010633053,-3406.26930667,0.00013,2]
[398939860,1766010633068,-4478.17977714,0.00013,2]
[398939861,1766010633087,-1447.16283727,0.00013,2]
[398939862,1766010633102,-638.63,0.00013024,2]
[398939863,1766010633118,-6495.76877833,0.00013151,2]
[398939864,1766010633135,-29898.11860002,0.00013151,2]
[398939865,1766010633150,-1948.0,0.0001316,2]
[398939866,1766010633165,-997.53580442,0.00013187,2]
[398939867,1766010633180,-283.0,0.00013309,2]
[398939868,1766010633194,-301.0,0.00013322,2]
[398939869,1766010633208,-429.95,0.00013328,2]
[398939870,1766010633222,-451.14569907,0.00013335,2]
[398939871,1766010633237,-679.0,0.00013404,2]
[398939872,1766010633254,-913.14523097,0.00013431,2]
[398939873,1766010633355,-501.01323601,0.00013431,2]
[398939874,1766010633381,-366.84153302,0.00013431,2]
[398939875,1766010633396,-149.089717,0.00013543,2]
[398939879,1766010638199,-350.910283,0.00013543,2]
[398939880,1766010638209,-200.0,0.00013602,2]
[398939881,1766010638219,-151.0,0.00013602,2]
[398939882,1766010638230,-151.0,0.00013602,2]
[398939883,1766010638240,-151.0,0.00013602,2]
[398939884,1766010638250,-151.0,0.00013602,2]
[398939885,1766010638260,-151.0,0.00013602,2]
[398939886,1766010638270,-151.0,0.00013602,2]
[398939887,1766010638280,-151.0,0.00013602,2]
[398939888,1766010638290,-151.0,0.00013602,2]
[398939889,1766010638300,-151.0,0.00013602,2]
[398939890,1766010638311,-151.0,0.00013602,2]
[398939891,1766010638321,-151.0,0.00013602,2]
[398939892,1766010638331,-151.0,0.00013602,2]
[398939893,1766010638341,-151.0,0.00013602,2]
[398939894,1766010638351,-500.0,0.00013608,2]
[398939895,1766010638360,-150.99,0.00013608,2]
[398939896,1766010638369,-499.99,0.00013608,2]
[398939897,1766010638383,-500.0,0.00013698,2]
[398939898,1766010638392,-500.0,0.00013698,2]
[398939899,1766010638402,-500.0,0.00013698,2]
[398939900,1766010638412,-500.0,0.00013698,2]
[398939901,1766010638422,-469.07,0.00013698,2]
[398939902,1766010638432,-500.0,0.00013698,2]
[398939903,1766010638442,-500.0,0.00013698,2]
[398939905,1766010638452,-508.5401249,0.00013698,2]
[398939906,1766010638462,-500.0,0.00013698,2]
[398939907,1766010638472,-500.0,0.00013698,2]
[398939908,1766010638482,-500.0,0.00013698,2]
[398939909,1766010638491,-500.0,0.00013698,2]
[398939910,1766010638502,-500.0,0.00013698,2]
[398939912,1766010638512,-500.0,0.00013698,2]
[398939914,1766010638522,-500.0,0.00013698,2]
[398939916,1766010638532,-238.49401825,0.00013698,2]
[398939917,1766010638541,-359.44010989,0.00013698,2]
[398939918,1766010638551,-268.91454447,0.00013698,2]
[398939919,1766010638563,-231.08545553,0.00013698,2]
[398939922,1766010638575,-500.0,0.00013698,2]
[398939923,1766010638585,-462.71454447,0.00013698,2]
[398939924,1766010638596,-37.28545553,0.00013698,2]
[398939925,1766010638606,-500.0,0.00013698,2]
[398939926,1766010638616,-500.0,0.00013698,2]
[398939927,1766010638625,-257.95943089,0.00013698,2]
[398939928,1766010638647,-242.04056911,0.00013698,2]
[398939930,1766010638657,-500.0,0.00013698,2]
[398939932,1766010638667,-311.27445849,0.00013698,2]
[398939934,1766010638677,-11.08914725,0.00013698,2]
[398939936,1766010638688,-794.61085275,0.00013698,2]
[398939938,1766010638698,-500.0,0.00013698,2]
[398939940,1766010638707,-358.93,0.00013698,2]
[398939942,1766010638717,-500.0,0.00013698,2]
[398939944,1766010638727,-500.0,0.00013698,2]
[398939946,1766010638741,-218.06651847,0.00013698,2]
[398939948,1766010638751,-500.0,0.00013698,2]
[398939951,1766010638761,-500.0,0.00013698,2]
[398939952,1766010638770,-116.11957219,0.00013698,2]
[398939953,1766010638782,-383.88042781,0.00013698,2]
[398939954,1766010638792,-500.0,0.00013698,2]
[398939955,1766010638801,-500.0,0.00013698,2]
[398939956,1766010638812,-500.0,0.00013698,2]
[398939957,1766010638822,-500.0,0.00013698,2]
[398939958,1766010638831,-500.0,0.00013698,2]
[398939959,1766010638841,-500.0,0.00013698,2]
[398939960,1766010638851,-500.0,0.00013698,2]
[398939961,1766010638861,-305.17878308,0.00013698,2]
[398939962,1766010638871,-500.0,0.00013698,2]
[398939963,1766010638880,-500.0,0.00013698,2]
[398939964,1766010638890,-525.92146982,0.00013698,2]
[398939965,1766010638900,-500.0,0.00013698,2]
[398939966,1766010638910,-500.0,0.00013698,2]
[398939967,1766010638919,-500.0,0.00013698,2]
[398939968,1766010638929,-429.95,0.00013698,2]
[398939969,1766010638939,-500.0,0.00013882,2]
[398939970,1766010638957,-805.7,0.00013972,2]
[398939971,1766010638968,-1368.70274849,0.00013979,2]
[398939972,1766010638981,-2037.56725151,0.00013979,2]
[398939973,1766010638991,-444.0,0.00013997,2]
[398939974,1766010639002,-255.0,0.00014012,2]
[398939975,1766010639012,-429.95,0.00014068,2]
[398939976,1766010639022,-11724.71,0.00014077,2]
[398939977,1766010639031,-500.0,0.00014117,2]
[398939978,1766010639041,-446.32934225,0.00014117,2]
[398939979,1766010639051,-265.22315895,0.00014117,2]
[398939980,1766010639061,-500.0,0.00014117,2]
[398939981,1766010639071,-500.0,0.00014117,2]
[398939982,1766010639081,-500.0,0.00014117,2]
[398939983,1766010639091,-531.47337097,0.00014117,2]
[398939984,1766010639101,-500.0,0.00014117,2]
[398939985,1766010639110,-500.0,0.00014117,2]
[398939986,1766010639120,-500.0,0.00014117,2]
[398939987,1766010639130,-500.0,0.00014117,2]
[398939988,1766010639139,-500.0,0.00014117,2]
[398939989,1766010639149,-500.0,0.00014117,2]
[398939990,1766010639159,-500.0,0.00014117,2]
[398939991,1766010639168,-500.0,0.00014117,2]
[398939992,1766010639178,-500.0,0.00014117,2]
[398939993,1766010639187,-273.27837632,0.00014117,2]
[398939994,1766010639224,-226.72162368,0.00014117,2]
[398939995,1766010639233,-500.0,0.00014117,2]
[398939996,1766010639243,-500.0,0.00014117,2]
[398939997,1766010639253,-500.0,0.00014117,2]
[398939998,1766010639264,-500.0,0.00014117,2]
[398939999,1766010639274,-500.0,0.00014117,2]
[398940000,1766010639283,-500.0,0.00014117,2]
[398940001,1766010639293,-500.0,0.00014117,2]
[398940002,1766010639306,-500.0,0.00014117,2]
[398940003,1766010639316,-500.0,0.00014117,2]
[398940004,1766010639326,-581.03812924,0.00014117,2]
[398940005,1766010639337,-500.0,0.00014117,2]
[398940006,1766010639346,-500.0,0.00014117,2]
[398940007,1766010639356,-500.0,0.00014117,2]
[398940008,1766010639366,-500.0,0.00014117,2]
[398940009,1766010639376,-500.0,0.00014117,2]
[398940010,1766010639386,-500.0,0.00014117,2]
[398940011,1766010639395,-200.0,0.00014118,2]
[398940012,1766010639405,-1852.42,0.0001415,2]
[398940013,1766010639415,-420.0,0.00014164,2]
[398940014,1766010639425,-166.66,0.00014167,2]
[398940015,1766010639435,-1680.0,0.00014205,2]
[398940016,1766010639445,-805.7,0.00014246,2]
[398940017,1766010639455,-600.0,0.00014302,2]
[398940018,1766010639465,-805.7,0.0001452,2]
[398940019,1766010639474,-166.66,0.00014635,2]
[398940020,1766010639484,-805.7,0.00014794,2]
[398940021,1766010639494,-235.0,0.00014811,2]
[398940022,1766010639503,-321.07696526,0.00014811,2]
[398940023,1766010639513,-1727.44303849,0.00014844,2]
[398940024,1766010639523,-600.0,0.0001485,2]
[398940025,1766010639533,-500.0,0.00014958,2]
[398940026,1766010639542,-500.0,0.00014958,2]
[398940027,1766010639552,-20213.7134523,0.00015,2]
[398940028,1766010639561,-805.74,0.00015068,2]
[398940029,1766010639571,-900.0,0.00015068,2]
[398940030,1766010639581,-1526.00313187,0.00015089,2]
[398940031,1766010639592,-200.0,0.00015101,2]
[398940032,1766010639605,-235.8268,0.00015102,2]
[398940033,1766010639616,-2839.9627,0.00015102,2]
[398940034,1766010639625,-61116.6022,0.00015102,2]
[398940035,1766010639635,-166.66,0.00015103,2]
[398940036,1766010639645,-500.0,0.00015178,2]
[398940037,1766010639656,-433.0,0.000152,2]
[398940038,1766010639665,-13692.05,0.00015202,2]
[398940039,1766010639675,-5621.00156355,0.00015242,2]
[398940040,1766010639685,-6268.33943493,0.00015271,2]
[398940041,1766010639695,-150.0,0.00015288,2]
[398940042,1766010639705,-150.0,0.00015288,2]
[398940043,1766010639714,-150.0,0.00015288,2]
[398940044,1766010639724,-150.0,0.00015288,2]
[398940045,1766010639735,-150.0,0.00015288,2]
[398940046,1766010639746,-150.0,0.00015288,2]
[398940047,1766010639756,-150.0,0.00015288,2]
[398940048,1766010639766,-150.0,0.00015288,2]
[398940049,1766010639775,-150.0,0.00015288,2]
[398940050,1766010639785,-150.0,0.00015288,2]
[398940051,1766010639795,-151.0803606,0.00015288,2]
[398940052,1766010639804,-150.0,0.00015288,2]
[398940053,1766010639815,-150.0,0.00015288,2]
[398940054,1766010639824,-150.0,0.00015288,2]
[398940055,1766010639834,-150.0,0.00015325,2]
[398940056,1766010639843,-150.0,0.00015327,2]
[398940057,1766010639853,-150.0,0.00015339,2]
[398940058,1766010639862,-150.0,0.00015342,2]
[398940059,1766010639872,-500.0,0.00015342,2]
[398940060,1766010639882,-150.0,0.00015356,2]
[398940061,1766010639891,-150.0,0.00015358,2]
[398940062,1766010639901,-150.0,0.00015363,2]
[398940063,1766010639913,-150.0,0.00015367,2]
[398940064,1766010639923,-150.0,0.00015377,2]
[398940065,1766010639932,-150.0,0.00015391,2]
[398940066,1766010639942,-150.0,0.00015397,2]
[398940067,1766010639951,-600.0,0.00015398,2]
[398940068,1766010639961,-505.62829288,0.000154,2]
[398940069,1766010639970,-150.0,0.00015401,2]
[398940070,1766010639979,-150.0,0.00015401,2]
[398940071,1766010639989,-150.0,0.00015424,2]
[398940072,1766010640000,-5621.00156351,0.00015426,2]
[398940073,1766010640010,-150.0,0.00015429,2]
[398940074,1766010640020,-150.0,0.00015439,2]
[398940075,1766010640030,-150.0,0.00015442,2]
[398940076,1766010640040,-150.0,0.00015446,2]
[398940077,1766010640050,-150.0,0.00015452,2]
[398940078,1766010640060,-150.0,0.00015466,2]
[398940079,1766010640070,-500.0,0.00015473,2]
[398940081,1766010640080,-500.0,0.00015473,2]
[398940082,1766010640090,-500.0,0.00015473,2]
[398940083,1766010640100,-500.0,0.00015473,2]
[398940084,1766010640112,-211.82211152,0.00015473,2]
[398940085,1766010640122,-500.0,0.00015473,2]
[398940086,1766010640132,-500.0,0.00015473,2]
[398940087,1766010640142,-500.0,0.00015473,2]
[398940088,1766010640151,-412.77072923,0.00015473,2]
[398940089,1766010640161,-500.0,0.00015473,2]
[398940090,1766010640170,-500.0,0.00015473,2]
[398940091,1766010640180,-500.0,0.00015473,2]
[398940092,1766010640190,-500.0,0.00015473,2]
[398940093,1766010640199,-150.0,0.00015476,2]
[398940094,1766010640209,-150.0,0.00015476,2]
[398940095,1766010640219,-150.0,0.00015485,2]
[398940096,1766010640228,-150.0,0.00015492,2]
[398940097,1766010640238,-150.0,0.00015494,2]
[398940098,1766010640248,-150.0,0.000155,2]
[398940099,1766010640258,-150.0,0.00015507,2]
[398940100,1766010640268,-150.0,0.00015514,2]
[398940101,1766010640278,-150.0,0.00015514,2]
[398940102,1766010640288,-150.0,0.00015525,2]
[398940103,1766010640298,-150.0,0.0001553,2]
[398940104,1766010640308,-587.0,0.00015534,2]
[398940105,1766010640318,-150.0,0.00015545,2]
[398940106,1766010640328,-150.0,0.00015552,2]
[398940107,1766010640339,-150.0,0.00015556,2]
[398940108,1766010640348,-150.0,0.00015559,2]
[398940109,1766010640358,-150.0,0.00015562,2]
[398940110,1766010640367,-150.0,0.00015564,2]
[398940111,1766010640377,-166.66,0.0001557,2]
[398940112,1766010640387,-150.0,0.00015571,2]
[398940113,1766010640397,-150.0,0.0001559,2]
[398940114,1766010640406,-150.0,0.00015597,2]
[398940115,1766010640416,-150.0,0.00015604,2]
[398940116,1766010640426,-5621.00156351,0.0001561,2]
[398940117,1766010640436,-150.0,0.00015616,2]
[398940118,1766010640446,-2351.0,0.00015626,2]
[398940119,1766010640455,-150.0,0.00015627,2]
[398940120,1766010640466,-150.0,0.00015627,2]
[398940121,1766010640476,-150.0,0.00015627,2]
[398940122,1766010640486,-150.0,0.00015627,2]
[398940123,1766010640496,-150.0,0.00015642,2]
[398940124,1766010640506,-150.0,0.00015643,2]
[398940125,1766010640516,-150.0,0.00015645,2]
[398940126,1766010640526,-150.0,0.00015648,2]
[398940127,1766010640535,-150.0,0.00015665,2]
[398940128,1766010640546,-150.0,0.00015665,2]
[398940129,1766010640932,-150.0,0.00015671,2]
[398940130,1766010640941,-150.0,0.00015683,2]
[398940131,1766010640951,-150.0,0.00015695,2]
[398940132,1766010640960,-150.0,0.00015699,2]
[398940133,1766010640969,-150.0,0.00015703,2]
[398940134,1766010640978,-150.0,0.00015712,2]
[398940135,1766010640988,-150.0,0.00015722,2]
[398940136,1766010640997,-150.0,0.00015726,2]
[398940137,1766010641007,-150.0,0.00015735,2]
[398940138,1766010641016,-150.0,0.00015741,2]
[398940139,1766010641026,-150.0,0.00015741,2]
[398940140,1766010641036,-150.0,0.00015751,2]
[398940141,1766010641046,-150.0,0.00015762,2]
[398940142,1766010641055,-150.0,0.00015763,2]
[398940143,1766010641066,-175.92,0.0001577,2]
[398940144,1766010641076,-150.0,0.00015773,2]
[398940145,1766010641085,-150.0,0.00015778,2]
[398940146,1766010641095,-150.0,0.00015781,2]
[398940147,1766010641104,-150.0,0.00015783,2]
[398940148,1766010641113,-5621.00156351,0.00015795,2]
[398940149,1766010641123,-150.0,0.00015801,2]
[398940150,1766010641132,-150.0,0.00015802,2]
[398940151,1766010641141,-2227.88016117,0.00015807,2]
[398940152,1766010641151,-150.0,0.00015816,2]
[398940153,1766010641160,-500.0,0.00015819,2]
[398940154,1766010641170,-500.0,0.00015819,2]
[398940155,1766010641179,-500.0,0.00015819,2]
[398940156,1766010641188,-500.0,0.00015819,2]
[398940157,1766010641198,-500.0,0.00015819,2]
[398940158,1766010641207,-500.0,0.00015819,2]
[398940159,1766010641217,-150.0,0.00015819,2]
[398940160,1766010641226,-500.0,0.00015819,2]
[398940161,1766010641236,-500.0,0.00015819,2]
[398940162,1766010641245,-500.0,0.00015819,2]
[398940163,1766010641255,-150.0,0.00015819,2]
[398940164,1766010641265,-228.81809239,0.00015819,2]
[398940165,1766010641275,-500.0,0.00015819,2]
[398940166,1766010641285,-150.0,0.00015819,2]
[398940167,1766010641294,-500.0,0.00015819,2]
[398940168,1766010641304,-150.0,0.00015819,2]
[398940169,1766010641315,-150.82561092,0.00015819,2]
[398940170,1766010641324,-150.0,0.00015819,2]
[398940171,1766010641335,-150.0,0.00015819,2]
[398940172,1766010641344,-297.13717614,0.00015819,2]
[398940173,1766010641354,-150.0,0.00015819,2]
[398940174,1766010641363,-170.21872884,0.00015819,2]
[398940175,1766010641372,-500.0,0.00015819,2]
[398940176,1766010641381,-150.0,0.00015819,2]
[398940177,1766010641391,-150.0,0.00015819,2]
[398940178,1766010641401,-150.0,0.00015819,2]
[398940179,1766010641410,-150.0,0.00015819,2]
[398940180,1766010641419,-500.0,0.00015819,2]
[398940181,1766010641429,-500.0,0.00015819,2]
[398940182,1766010641438,-150.0,0.00015819,2]
[398940183,1766010641447,-200.0,0.00015819,2]
[398940184,1766010641458,-500.0,0.00015819,2]
[398940185,1766010641467,-150.0,0.00015819,2]
[398940186,1766010641476,-500.0,0.00015819,2]
[398940187,1766010641486,-150.0,0.00015824,2]
[398940188,1766010641495,-150.0,0.00015831,2]
[398940189,1766010641505,-150.0,0.00015836,2]
[398940190,1766010641515,-150.0,0.00015841,2]
[398940191,1766010641524,-150.0,0.00015854,2]
[398940192,1766010641534,-150.0,0.00015854,2]
[398940193,1766010641542,-150.0,0.00015854,2]
[398940194,1766010641552,-150.0,0.00015854,2]
[398940195,1766010641561,-150.0,0.00015854,2]
[398940196,1766010641570,-150.0,0.0001588,2]
[398940197,1766010641580,-150.0,0.0001589,2]
[398940198,1766010641589,-150.0,0.00015892,2]
[398940199,1766010641598,-150.0,0.00015899,2]
[398940200,1766010641607,-4941.46894521,0.000159,2]
[398940201,1766010641616,-154.28325404,0.000159,2]
[398940202,1766010641626,-2562.07198639,0.000159,2]
[398940203,1766010641635,-150.0,0.00015905,2]
[398940204,1766010641644,-150.0,0.00015913,2]
[398940205,1766010641654,-295.82,0.00015915,2]
[398940206,1766010641663,-150.0,0.0001592,2]
[398940207,1766010641673,-150.0,0.00015925,2]
[398940208,1766010641682,-150.0,0.00015929,2]
[398940209,1766010641691,-1057.4,0.00015938,2]
[398940210,1766010641700,-150.0,0.00015945,2]
[398940211,1766010641710,-600.0,0.00015946,2]
[398940212,1766010641720,-2500.0,0.00015947,2]
[398940213,1766010641729,-2856.6968,0.00015949,2]
[398940214,1766010641742,-22432.6987,0.00015949,2]
[398940215,1766010641752,-974.1783,0.00015949,2]
[398940216,1766010641761,-201.34403204,0.00015955,2]
[398940217,1766010641770,-500.0,0.00015956,2]
[398940219,1766010641780,-500.0,0.00015956,2]
[398940221,1766010641790,-500.0,0.00015956,2]
[398940223,1766010641799,-500.0,0.00015956,2]
[398940225,1766010641808,-500.0,0.00015956,2]
[398940227,1766010641819,-500.0,0.00015956,2]
[398940229,1766010641828,-500.0,0.00015956,2]
[398940231,1766010641837,-500.0,0.00015956,2]
[398940233,1766010641847,-500.0,0.00015956,2]
[398940235,1766010641857,-150.0,0.00015956,2]
[398940237,1766010641866,-150.0,0.00015956,2]
[398940239,1766010641875,-500.0,0.00015956,2]
[398940241,1766010641885,-500.0,0.00015956,2]
[398940243,1766010641894,-150.0,0.00015956,2]
[398940245,1766010641903,-150.0,0.00015956,2]
[398940247,1766010641912,-161.99230191,0.00015956,2]
[398940249,1766010641922,-150.0,0.00015956,2]
[398940251,1766010641931,-500.0,0.00015956,2]
[398940253,1766010641943,-150.0,0.00015956,2]
[398940256,1766010641953,-204.19787838,0.00015956,2]
[398940258,1766010641963,-223.93591667,0.00015956,2]
[398940260,1766010641972,-500.0,0.00015956,2]
[398940262,1766010641982,-500.0,0.00015956,2]
[398940264,1766010641991,-150.0,0.00015956,2]
[398940266,1766010642001,-500.0,0.00015956,2]
[398940268,1766010642011,-150.0,0.00015956,2]
[398940270,1766010642021,-500.0,0.00015956,2]
[398940272,1766010642031,-250.0,0.00015956,2]
[398940274,1766010642041,-150.0,0.00015957,2]
[398940276,1766010642050,-150.0,0.00015959,2]
[398940278,1766010642059,-150.0,0.00015967,2]
[398940279,1766010642069,-150.0,0.00015967,2]
[398940280,1766010642078,-150.0,0.00015967,2]
[398940281,1766010642087,-150.0,0.00015967,2]
[398940282,1766010642096,-5621.00156351,0.00015979,2]
[398940283,1766010642105,-1863.87983717,0.0001599,2]
[398940284,1766010642114,-150.0,0.00015995,2]
[398940285,1766010642123,-151.0,0.00015997,2]
[398940286,1766010642133,-150.0,0.00015999,2]
[398940287,1766010642142,-1810.31562453,0.00016,2]
[398940288,1766010642151,-11858.42004339,0.00016,2]
[398940289,1766010642160,-199267.10560304,0.00016,2]
[398940430,1766010643457,-51984.05689337,0.00016,2]
[398940431,1766010643466,-150.0,0.00016,2]
[398940433,1766010643476,-114508.00506767,0.00016,4]
[398940436,1766010643487,-72330.07480854,0.00016,4]
[398940438,1766010643498,-398.96585399,0.00016,4]
[398940440,1766010643509,-401276.11357885,0.00016,4]
[398940442,1766010643518,-415.16425882,0.00016,2]
[398940444,1766010643527,-150.0,0.00016003,2]
[398940446,1766010643536,-150.0,0.00016005,2]
[398940448,1766010643545,-150.0,0.00016008,2]
[398940450,1766010643554,-4941.46894514,0.00016011,2]
[398940452,1766010643562,-150.0,0.00016016,2]
[398940454,1766010643571,-1070.99793084,0.00016021,2]
[398940456,1766010643580,-1000.0,0.00016021,2]
[398940458,1766010643589,-1000.0,0.00016021,2]
[398940460,1766010643598,-1000.0,0.00016021,2]
[398940462,1766010643607,-1091.38673749,0.00016021,2]
[398940464,1766010643616,-1000.0,0.00016021,2]
[398940466,1766010643625,-1000.0,0.00016021,2]
[398940468,1766010643634,-1000.0,0.00016021,2]
[398940471,1766010643643,-1000.0,0.00016021,2]
[398940473,1766010643652,-1000.0,0.00016021,2]
[398940475,1766010643661,-1000.0,0.00016021,2]
[398940477,1766010643670,-2198.0,0.00016027,2]
[398940479,1766010643679,-150.0,0.00016035,2]
[398940481,1766010643688,-166.66,0.00016038,2]
[398940484,1766010643697,-150.0,0.00016038,2]
[398940486,1766010643706,-150.0,0.00016043,2]
[398940488,1766010643715,-150.0,0.00016043,2]
[398940490,1766010643725,-170.9863189,0.00016049,2]
[398940492,1766010643735,-698.29122795,0.00016049,2]
[398940494,1766010643748,-760000.0,0.00016049,2]
[398940496,1766010643758,-150.0,0.00016055,2]
[398940498,1766010643767,-175.92,0.00016056,2]
[398940500,1766010643779,-150.0,0.0001606,2]
[398940502,1766010643790,-150.0,0.00016066,2]
[398940504,1766010643799,-150.0,0.00016078,2]
[398940506,1766010643809,-150.0,0.0001608,2]
[398940508,1766010643819,-150.0,0.0001608,2]
[398940510,1766010643829,-150.0,0.00016092,2]
[398940512,1766010643839,-500.0,0.00016093,2]
[398940514,1766010643849,-500.0,0.00016093,2]
[398940516,1766010643858,-500.0,0.00016093,2]
[398940518,1766010643868,-500.0,0.00016093,2]
[398940521,1766010643878,-500.0,0.00016093,2]
[398940523,1766010643887,-500.0,0.00016093,2]
[398940525,1766010643896,-500.0,0.00016093,2]
[398940527,1766010643905,-368.86787241,0.00016093,2]
[398940529,1766010643915,-155.2202106,0.00016093,2]
[398940531,1766010643925,-150.0,0.00016093,2]
[398940533,1766010643934,-150.0,0.00016093,2]
[398940535,1766010643944,-572.6774988,0.00016093,2]
[398940537,1766010643954,-500.0,0.00016093,2]
[398940539,1766010643963,-150.0,0.00016093,2]
[398940541,1766010643974,-234.17527772,0.00016093,2]
[398940543,1766010643984,-200.0,0.00016093,2]
[398940545,1766010643993,-450.0,0.00016093,2]
[398940547,1766010644004,-163.63401332,0.00016093,2]
[398940549,1766010644014,-500.0,0.00016093,2]
[398940550,1766010644023,-164.38738988,0.00016093,2]
[398940551,1766010644032,-500.0,0.00016093,2]
[398940552,1766010644042,-169.00704215,0.00016093,2]
[398940553,1766010644052,-500.0,0.00016093,2]
[398940554,1766010644061,-500.0,0.00016093,2]
[398940555,1766010644070,-150.0,0.00016103,2]
[398940556,1766010644081,-150.0,0.0001611,2]
[398940558,1766010644091,-150.0,0.00016111,2]
[398940560,1766010644100,-150.0,0.00016117,2]
[398940562,1766010644109,-150.0,0.00016118,2]
[398940564,1766010644119,-4941.46894514,0.00016122,2]
[398940566,1766010644129,-150.0,0.00016137,2]
[398940568,1766010644138,-150.0,0.00016137,2]
[398940570,1766010644148,-247.35450026,0.00016148,2]
[398940572,1766010644158,-500.0,0.00016148,2]
[398940574,1766010644167,-578.20924308,0.00016149,2]